bitfinex/quotes_SOLUSD_20250811
["timestamp","ask_amount","ask_price","bid_price","bid_amount"]
[1754885801282,4.76385419,186.22,186.15,4.76385419]
[1754885801589,4.76385419,186.19,186.16,39.9]
[1754885801888,0.7,186.19,186.16,39.9]
[1754885802186,0.7,186.18,186.16,39.9]
[1754885802988,5.46385419,186.17,186.13,15.10621557]
[1754885803285,0.7,186.17,186.14,39.88]
[1754885804369,0.7,186.16,186.14,39.88]
[1754885804688,5.46385419,186.18,186.14,39.88]
[1754885804875,0.7,186.18,186.14,44.64385419]
[1754885805391,0.7,186.18,186.14,45.36385419]
[1754885805560,4.76385419,186.19,186.14,50.73613556]
[1754885805889,5.46385419,186.19,186.14,50.73613556]
[1754885806094,6.07032184,186.21,186.15,0.72]
[1754885806263,4.76385419,186.2,186.15,5.48385419]
[1754885806673,0.7,186.2,186.15,0.72]
[1754885806865,5.46385419,186.2,186.15,95.08385419]
[1754885807086,5.46385419,186.2,186.16,39.8]
[1754885807885,0.7,186.19,186.16,39.8]
[1754885808489,4.76385419,186.2,186.16,39.8]
[1754885808787,10.83443228,186.2,186.16,39.8]
[1754885809577,0.7,186.19,186.16,39.8]
[1754885809988,0.7,186.18,186.16,39.8]
[1754885810172,5.46385419,186.18,186.14,89.6]
[1754885810372,5.46385419,186.17,186.13,65.72]
[1754885810572,0.7,186.16,186.15,26.0]
[1754885810778,4.76385419,186.17,186.15,26.0]
[1754885811081,4.76385419,186.18,186.15,26.0]
[1754885811277,0.7,186.17,186.15,26.0]
[1754885812086,0.7,186.16,186.15,26.0]
[1754885815198,4.76385419,186.17,186.15,26.0]
[1754885815874,5.46385419,186.16,186.12,115.63]
[1754885816075,5.46385419,186.18,186.13,4.76385419]
[1754885816376,5.46385419,186.18,186.14,0.72]
[1754885817096,4.76385419,186.18,186.14,0.72]
[1754885817709,6.07097912,186.19,186.14,0.72]
[1754885818000,0.7,186.21,186.17,4.76385419]
[1754885818205,10.13408586,186.22,186.17,95.08385419]
[1754885818368,0.7,186.21,186.17,89.6]
[1754885818572,0.7,186.2,186.17,89.6]
[1754885818809,4.76385419,186.21,186.17,89.6]
[1754885819100,0.7,186.19,186.17,89.6]
[1754885819503,10.13425124,186.21,186.17,89.6]
[1754885819887,0.71,186.2,186.17,89.6]
[1754885820384,0.71,186.19,186.17,89.6]
[1754885820583,5.47385419,186.19,186.17,89.6]
[1754885820782,0.71,186.19,186.17,89.6]
[1754885821800,0.71,186.19,186.16,39.6]
[1754885822027,5.37068019,186.2,186.16,40.29]
[1754885822305,10.13453438,186.2,186.16,40.29]
[1754885822476,10.84453438,186.2,186.16,40.29]
[1754885822678,6.08068019,186.2,186.16,40.29]
[1754885823006,10.84453438,186.2,186.16,40.29]
[1754885823495,5.47385419,186.2,186.16,40.29]
[1754885823681,4.76385419,186.2,186.17,0.69]
[1754885823882,4.76385419,186.2,186.16,39.6]
[1754885824083,4.76385419,186.2,186.16,40.29]
[1754885824476,10.84420363,186.21,186.16,45.05385419]
[1754885825396,10.84420363,186.21,186.17,0.69]
[1754885825593,10.84420363,186.21,186.16,44.36385419]
[1754885825594,10.84420363,186.21,186.16,39.6]
[1754885825808,10.84420363,186.21,186.16,45.05385419]
[1754885826013,10.13420363,186.21,186.16,45.05385419]
[1754885826212,0.71,186.2,186.16,39.6]
[1754885826618,10.13420363,186.21,186.16,39.6]
[1754885826800,0.71,186.19,186.16,44.36385419]
[1754885827724,0.71,186.19,186.16,133.96385419]
[1754885827920,10.13420363,186.21,186.17,0.69]
[1754885828222,0.71,186.2,186.16,129.2]
[1754885828416,0.71,186.2,186.16,129.89]
[1754885829008,0.71,186.2,186.16,134.65385419]
[1754885829598,10.13420363,186.21,186.17,0.69]
[1754885829797,0.06,186.22,186.17,0.69]
[1754885830022,0.06,186.22,186.19,4.76385419]
[1754885830223,0.06,186.22,186.2,0.69]
[1754885830897,0.06,186.22,186.2,5.45385419]
[1754885831100,0.06,186.22,186.21,5.45385419]
[1754885831315,0.06,186.22,186.21,90.29]
[1754885831920,0.06,186.22,186.21,89.6]
[1754885832529,0.06,186.22,186.21,95.66028086]
[1754885832731,0.06,186.22,186.21,115.53035062]
[1754885833808,0.06,186.22,186.21,105.39621557]
[1754885834030,0.06,186.22,186.21,110.16006976]
[1754885835396,0.06,186.22,186.21,105.39621557]
[1754885835832,0.06,186.22,186.21,110.16006976]
[1754885836011,0.06,186.22,186.21,105.39621557]
[1754885836336,0.06,186.22,186.21,144.28621557]
[1754885836513,0.06,186.22,186.21,149.05006976]
[1754885836911,0.06,186.22,186.18,26.0]
[1754885837106,0.77,186.22,186.18,15.10621557]
[1754885837306,4.76385419,186.2,186.14,15.13621557]
[1754885837527,0.77,186.22,186.14,15.13621557]
[1754885837528,0.71,186.19,186.16,15.10621557]
[1754885837739,4.76385419,186.18,186.14,54.71621557]
[1754885837902,5.47385419,186.18,186.14,54.71621557]
[1754885838102,0.71,186.18,186.14,54.71621557]
[1754885838340,0.71,186.18,186.14,81.40621557]
[1754885838506,0.71,186.17,186.14,54.71621557]
[1754885840225,5.37156702,186.17,186.14,54.71621557]
[1754885840424,0.71,186.16,186.14,54.71621557]
[1754885840836,0.71,186.15,186.14,15.13621557]
[1754885841519,13.48553944,186.22,186.14,15.13621557]
[1754885841848,0.71,186.17,186.14,15.13621557]
[1754885842052,0.71,186.16,186.14,15.13621557]
[1754885842637,13.48553944,186.22,186.14,15.13621557]
[1754885842828,0.71,186.18,186.14,19.90006976]
[1754885843030,0.71,186.18,186.14,15.13621557]
[1754885843227,5.47385419,186.18,186.14,15.13621557]
[1754885843435,4.76385419,186.19,186.14,19.90006976]
[1754885843731,0.71,186.17,186.14,15.13621557]
[1754885843935,0.06,186.22,186.14,15.13621557]
[1754885844238,4.76385419,186.18,186.14,0.03]
[1754885844443,0.71,186.17,186.14,0.03]
[1754885844639,5.47385419,186.17,186.14,0.03]
[1754885844838,0.71,186.16,186.14,0.03]
[1754885845339,0.71,186.15,186.14,0.03]
[1754885845535,5.47385419,186.15,186.14,0.03]
[1754885845838,10.845866,186.15,186.14,0.03]
[1754885847144,6.08201181,186.15,186.14,0.03]
[1754885847343,10.845866,186.15,186.14,0.03]
[1754885847726,4.76385419,186.17,186.14,0.03]
[1754885848042,0.71,186.17,186.14,0.03]
[1754885848243,0.71,186.16,186.14,0.03]
[1754885849146,0.71,186.15,186.14,0.03]
[1754885850036,6.05092,186.19,186.14,0.7]
[1754885850331,5.44385419,186.18,186.14,0.7]
[1754885850538,5.44385419,186.18,186.14,0.03]
[1754885850731,4.76385419,186.19,186.14,5.46385419]
[1754885850941,10.81473247,186.19,186.14,5.46385419]
[1754885851647,0.68,186.18,186.14,0.03]
[1754885852152,0.68,186.18,186.14,4.79385419]
[1754885852825,0.68,186.17,186.14,0.03]
[1754885853438,5.37087828,186.19,186.14,26.7]
[1754885853732,6.05087828,186.19,186.15,4.76385419]
[1754885853949,0.68,186.18,186.14,26.03]
[1754885854140,0.68,186.18,186.14,4.79385419]
[1754885854627,0.68,186.17,186.14,4.79385419]
[1754885855041,4.76385419,186.18,186.14,0.03]
[1754885855244,5.37172324,186.16,186.14,0.03]
[1754885855729,0.68,186.15,186.14,0.03]
[1754885856429,5.44385419,186.15,186.12,0.03]
[1754885856650,4.76385419,186.13,186.12,0.03]
[1754885857038,5.44385419,186.13,186.12,0.03]
[1754885857233,5.37287771,186.12,186.1,0.03]
[1754885857447,4.76385419,186.11,186.1,0.03]
[1754885857772,5.44385419,186.11,186.09,0.03]
[1754885857929,30.76385419,186.07,186.06,0.03]
[1754885858129,30.76385419,186.07,186.04,0.03]
[1754885858328,5.44385419,186.06,186.03,0.03]
[1754885858551,4.76385419,186.04,186.03,0.03]
[1754885858865,44.40385419,186.04,186.03,0.03]
[1754885859163,45.08385419,186.04,186.03,0.03]
[1754885859324,0.68,186.04,186.03,0.03]
[1754885859529,10.1387855,186.05,186.03,0.03]
[1754885859744,6.05493131,186.05,186.03,0.03]
[1754885859945,5.44385419,186.04,186.03,0.03]
[1754885860541,5.44385419,186.04,186.0,0.03]
[1754885860752,4.76385419,186.01,186.0,0.03]
[1754885860948,44.50385419,186.01,186.0,0.03]
[1754885861250,50.55990924,186.01,186.0,0.03]
[1754885866771,45.79605505,186.01,186.0,0.03]
[1754885867099,49.87990924,186.01,186.0,0.03]
[1754885867246,5.37605505,186.01,186.0,0.03]
[1754885867444,50.73990924,186.01,186.0,0.03]
[1754885867973,45.97605505,186.01,186.0,0.03]
[1754885868145,45.29605505,186.01,186.0,0.03]
[1754885868469,10.81990924,186.01,186.0,0.03]
[1754885868649,45.29605505,186.01,186.0,0.03]
[1754885870043,45.97605505,186.01,186.0,0.03]
[1754885870475,39.92,186.01,186.0,0.03]
[1754885870769,45.29605505,186.01,186.0,0.03]
[1754885871170,45.97605505,186.01,186.0,0.03]
[1754885871546,50.73990924,186.01,186.0,0.03]
[1754885871866,48.12861805,186.01,186.0,0.03]
[1754885872065,52.89247224,186.01,186.0,0.03]
[1754885872244,52.93247224,186.01,186.0,0.03]
[1754885873946,47.55641719,186.01,186.0,0.03]
[1754885874271,2.152563,186.01,186.0,0.7]
[1754885874566,0.68,186.08,186.0,5.46385419]
[1754885874773,42.291868,186.07,186.04,4.76385419]
[1754885874962,42.971868,186.07,186.01,0.67]
[1754885875163,42.971868,186.07,186.03,4.76385419]
[1754885875355,42.971868,186.07,186.01,0.67]
[1754885875757,42.971868,186.07,186.03,4.76385419]
[1754885875961,0.68,186.06,186.01,0.67]
[1754885876162,0.68,186.06,186.03,4.76385419]
[1754885876553,0.68,186.06,186.02,4.76385419]
[1754885876947,47.05572219,186.07,186.01,0.67]
[1754885877146,4.76385419,186.02,186.0,0.03]
[1754885877354,4.76385419,186.01,186.0,0.03]
[1754885877661,5.44385419,186.01,186.0,0.03]
[1754885879970,0.68,186.01,186.0,0.03]
[1754885880156,5.47385419,186.01,186.0,0.03]
[1754885880349,2.152447,186.02,186.0,0.75]
[1754885880665,40.12,186.07,186.01,5.48385419]
[1754885880871,40.12,186.07,186.04,4.76385419]
[1754885881172,2.151984,186.06,186.03,4.76385419]
[1754885881586,40.12,186.07,186.05,4.76385419]
[1754885881785,40.12,186.07,186.04,4.76385419]
[1754885882108,4.763854,186.07,186.03,4.76385419]
[1754885882373,44.863854,186.07,186.03,4.76385419]
[1754885882978,44.863854,186.07,186.03,0.72]
[1754885883276,44.863854,186.07,186.04,4.76385419]
[1754885884483,44.863854,186.07,186.0,0.03]
[1754885884484,4.763854,186.07,186.06,4.76385419]
[1754885884657,40.02,186.09,186.06,5.48385419]
[1754885884975,0.06,186.11,186.07,0.72]
[1754885885161,40.1,186.11,186.09,4.76385419]
[1754885885352,0.06,186.11,186.09,4.76385419]
[1754885886006,0.06,186.11,186.08,5.48385419]
[1754885886156,0.06,186.11,186.08,4.76385419]
[1754885886357,0.06,186.11,186.09,0.72]
[1754885886552,0.06,186.11,186.1,4.76385419]
[1754885886769,0.06,186.11,186.1,31.48385419]
[1754885886981,0.06,186.11,186.1,26.0]
[1754885887166,0.06,186.11,186.1,30.76385419]
[1754885887484,0.06,186.11,186.1,31.48385419]
[1754885887687,0.06,186.11,186.1,26.72]
[1754885887979,0.06,186.11,186.1,31.48385419]
[1754885888861,0.06,186.11,186.1,26.72]
[1754885889056,0.06,186.11,186.1,46.59006976]
[1754885893079,0.06,186.11,186.1,51.35392395]
[1754885893384,0.06,186.11,186.1,46.59006976]
[1754885893976,0.06,186.11,186.1,86.59006976]
[1754885894577,0.06,186.11,186.1,176.19006976]
[1754885896989,0.06,186.11,186.1,136.19006976]
[1754885897180,0.06,186.11,186.1,176.17006976]
[1754885898192,0.06,186.11,186.1,180.93392395]
[1754885898497,0.06,186.13,186.12,19.87006976]
[1754885898686,0.06,186.13,186.12,110.00735753]
[1754885898882,0.06,186.13,186.12,110.72735753]
[1754885899468,0.06,186.13,186.12,110.00735753]
[1754885899684,0.06,186.13,186.12,110.72735753]
[1754885899893,0.06,186.13,186.12,110.00735753]
[1754885900090,0.06,186.13,186.12,110.19006976]
[1754885900869,0.06,186.13,186.12,115.56294747]
[1754885901399,0.06,186.13,186.12,114.84294747]
[1754885902381,0.06,186.13,186.12,155.44294747]
[1754885905176,0.06,186.13,186.12,65.84294747]
[1754885905891,0.06,186.13,186.12,65.12294747]
[1754885906980,0.06,186.13,186.12,54.98621557]
[1754885907182,0.06,186.13,186.12,155.26023524]
[1754885907377,0.06,186.13,186.12,144.46621557]
[1754885907576,0.06,186.13,186.12,149.23006976]
[1754885907914,0.06,186.13,186.12,175.23006976]
[1754885909595,0.06,186.13,186.12,170.46621557]
[1754885909776,0.06,186.13,186.12,175.23006976]
[1754885909976,0.06,186.13,186.12,170.46621557]
[1754885910211,0.06,186.13,186.12,175.23006976]
[1754885910707,0.06,186.13,186.12,85.63006976]
[1754885911208,0.06,186.13,186.12,92.22023524]
[1754885911394,0.06,186.13,186.12,66.22023524]
[1754885912700,0.06,186.13,186.12,155.82023524]
[1754885912907,0.06,186.13,186.12,160.04680166]
[1754885913603,0.06,186.13,186.12,176.17680166]
[1754885914882,0.06,186.17,186.16,15.10621557]
[1754885915091,0.06,186.17,186.16,59.83006976]
[1754885915294,0.06,186.17,186.16,61.04724208]
[1754885915495,0.06,186.17,186.16,66.41896532]
[1754885915701,0.06,186.17,186.16,65.73896532]
[1754885916210,0.06,186.17,186.16,60.36724208]
[1754885916704,0.06,186.17,186.16,65.73896532]
[1754885918419,0.06,186.17,186.16,60.97511113]
[1754885918715,0.06,186.17,186.16,65.73896532]
[1754885919295,0.06,186.17,186.16,155.33896532]
[1754885919631,0.06,186.17,186.16,154.801793]
[1754885920513,0.06,186.17,186.16,155.481793]
[1754885922990,0.06,186.17,186.16,154.801793]
[1754885925102,0.06,186.17,186.16,150.03793881]
[1754885925302,0.06,186.17,186.16,154.801793]
[1754885931015,0.06,186.17,186.16,149.43006976]
[1754885931220,0.06,186.18,186.17,129.97621557]
[1754885931423,0.06,186.18,186.17,134.74006976]
[1754885932630,0.06,186.18,186.17,135.34765028]
[1754885932808,0.06,186.18,186.17,140.11150447]
[1754885933209,0.06,186.18,186.17,135.34765028]
[1754885933536,0.06,186.18,186.17,140.11150447]
[1754885937114,0.06,186.18,186.17,135.34765028]
[1754885937337,0.06,186.18,186.17,140.11150447]
[1754885937910,0.06,186.18,186.17,135.34765028]
[1754885938112,0.06,186.18,186.17,140.11150447]
[1754885938417,0.73,186.18,186.17,134.74006976]
[1754885938618,0.73,186.18,186.17,4.76385419]
[1754885938917,6.10115559,186.18,186.16,39.64]
[1754885939129,5.43115559,186.18,186.16,39.64]
[1754885939329,0.67,186.17,186.16,39.64]
[1754885942339,0.69,186.17,186.16,39.64]
[1754885943537,0.69,186.17,186.16,39.58101]
[1754885947647,0.06,186.18,186.16,39.58101]
[1754885947953,0.75,186.18,186.16,44.34486419]
[1754885948334,0.75,186.18,186.16,39.58101]
[1754885948524,0.69,186.17,186.16,39.58101]
[1754885948933,0.69,186.17,186.16,128.45101]
[1754885949658,6.06143471,186.17,186.16,128.45101]
[1754885949821,0.06,186.18,186.16,128.45101]
[1754885950022,0.69,186.17,186.16,128.45101]
[1754885950826,0.06,186.18,186.16,133.21486419]
[1754885951044,0.06,186.18,186.16,128.45101]
[1754885951228,0.06,186.18,186.16,133.21486419]
[1754885953233,0.06,186.18,186.17,21.06721323]
[1754885953855,0.75,186.18,186.16,15.10621557]
[1754885954040,0.06,186.18,186.17,54.74621557]
[1754885954243,0.06,186.18,186.17,59.51006976]
[1754885954432,0.06,186.18,186.17,54.74621557]
[1754885954748,0.06,186.18,186.17,59.51006976]
[1754885954948,0.06,186.18,186.17,54.74621557]
[1754885955139,0.06,186.18,186.17,59.51006976]
[1754885955952,0.75,186.18,186.17,54.74621557]
[1754885957360,0.06,186.18,186.17,54.74621557]
[1754885958254,0.06,186.18,186.17,55.40621557]
[1754885958552,0.06,186.18,186.17,54.74621557]
[1754885959962,0.75,186.18,186.17,54.74621557]
[1754885960432,0.06,186.18,186.17,54.74621557]
[1754885962035,0.06,186.18,186.17,55.24621557]
[1754885963134,0.06,186.18,186.17,55.90621557]
[1754885963333,0.06,186.18,186.17,129.01]
[1754885963534,0.06,186.18,186.17,175.54006976]
[1754885963750,0.06,186.18,186.17,180.91150447]
[1754885963945,0.06,186.18,186.17,175.54006976]
[1754885964673,0.06,186.18,186.17,180.91150447]
[1754885965160,0.06,186.18,186.17,174.88006976]
[1754885965576,0.06,186.18,186.17,175.54006976]
[1754885965866,0.06,186.18,186.17,170.77621557]
[1754885966035,0.06,186.18,186.17,175.54006976]
[1754885968053,0.06,186.18,186.17,170.11621557]
[1754885968362,0.06,186.18,186.17,174.88006976]
[1754885968661,0.06,186.18,186.17,175.54006976]
[1754885971056,0.06,186.18,186.17,170.77621557]
[1754885971255,0.74,186.18,186.17,174.88006976]
[1754885971656,0.06,186.18,186.17,174.88006976]
[1754885972153,6.1111462,186.18,186.17,128.99]
[1754885973263,4.76150221,186.18,186.17,128.99]
[1754885973565,4.08150221,186.18,186.17,128.99]
[1754885974142,4.08150221,186.18,186.17,0.5]
[1754885974143,9.45264841,186.18,186.17,0.5]
[1754885974341,10.13264841,186.18,186.17,0.5]
[1754885975368,14.8965026,186.18,186.12,39.65]
[1754885975542,4.76385419,186.15,186.12,39.65]
[1754885975744,0.68,186.14,186.12,39.65]
[1754885975951,4.70203126,186.14,186.12,39.65]
[1754885976144,0.68,186.14,186.12,39.65]
[1754885976564,6.05232072,186.14,186.12,39.65]
[1754885977647,6.05232072,186.14,186.12,26.03]
[1754885977851,6.05232072,186.14,186.12,0.03]
[1754885978546,0.68,186.14,186.12,0.03]
[1754885979070,5.3723759,186.14,186.12,0.03]
[1754885979274,0.68,186.13,186.12,0.03]
[1754885979472,5.44385419,186.13,186.12,0.03]
[1754885979657,9.46295151,186.13,186.12,0.03]
[1754885979970,4.69909732,186.13,186.12,0.03]
[1754885980165,0.68,186.13,186.12,0.03]
[1754885981554,6.05258905,186.13,186.12,0.03]
[1754885982056,10.0697957,186.13,186.12,0.03]
[1754885983072,6.05258905,186.13,186.12,0.03]
[1754885983574,14.109702,186.17,186.12,0.74]
[1754885983775,0.68,186.17,186.13,5.47385419]
[1754885983983,0.68,186.17,186.14,4.76385419]
[1754885984157,0.68,186.17,186.13,45.07385419]
[1754885984358,0.68,186.17,186.13,129.18]
[1754885984560,6.05145919,186.17,186.13,129.18]
[1754885985076,5.37145919,186.17,186.13,128.47]
[1754885985254,0.68,186.16,186.13,128.47]
[1754885985976,5.37145919,186.17,186.14,5.47385419]
[1754885986551,0.68,186.16,186.13,128.47]
[1754885987472,10.13531338,186.17,186.13,129.18]
[1754885987680,0.68,186.16,186.13,88.87]
[1754885988783,6.05201181,186.15,186.13,88.87]
[1754885989298,5.44385419,186.14,186.13,88.87]
[1754885989587,0.68,186.14,186.13,88.87]
[1754885990380,0.68,186.14,186.12,0.03]
[1754885990593,5.37201181,186.15,186.12,0.74]
[1754885990889,5.44385419,186.14,186.12,0.03]
[1754885992089,0.68,186.13,186.12,0.03]
[1754885993580,6.05258905,186.13,186.12,0.03]
[1754885993962,10.81644324,186.13,186.12,0.03]
[1754885995779,14.8278823,186.13,186.12,0.03]
[1754885996893,14.82702619,186.13,186.12,0.03]
[1754885997088,10.063172,186.13,186.12,0.03]
[1754885997381,14.82702619,186.13,186.12,0.03]
[1754885997764,14.82600403,186.13,186.12,0.03]
[1754886001090,4.76385419,186.11,186.1,0.03]
[1754886001286,8.77341498,186.11,186.1,0.03]
[1754886001471,9.42341498,186.11,186.1,0.03]
[1754886002295,14.79658138,186.11,186.1,0.03]
[1754886002466,54.37658138,186.11,186.1,0.03]
[1754886002988,49.61272719,186.11,186.1,0.03]
[1754886003287,54.37658138,186.11,186.1,0.03]
[1754886006174,49.61272719,186.11,186.1,0.03]
[1754886006378,54.37658138,186.11,186.1,0.03]
[1754886007783,44.9531664,186.11,186.1,0.03]
[1754886007976,49.71702059,186.11,186.1,0.03]
[1754886009295,54.36809868,186.11,186.1,0.03]
[1754886012208,49.60424449,186.11,186.1,0.03]
[1754886012370,5.37287771,186.12,186.1,0.69]
[1754886012574,49.6967319,186.12,186.1,0.03]
[1754886012802,4.76385419,186.11,186.1,0.03]
[1754886014011,49.6967319,186.12,186.1,0.03]
[1754886014603,49.6967319,186.12,186.1,0.69]
[1754886015384,49.6967319,186.12,186.1,0.03]
[1754886015786,44.93287771,186.12,186.11,0.66]
[1754886015986,48.93792702,186.12,186.11,0.66]
[1754886016287,5.37287771,186.12,186.11,0.66]
[1754886017821,44.93261008,186.13,186.11,0.66]
[1754886019188,0.06,186.12,186.11,0.66]
[1754886022710,0.06,186.12,186.11,5.42385419]
[1754886023713,0.06,186.12,186.11,0.66]
[1754886024697,0.06,186.12,186.1,0.03]
[1754886025023,0.06,186.12,186.1,5.45385419]
[1754886026516,0.06,186.12,186.1,0.69]
[1754886028313,0.06,186.12,186.11,0.66]
[1754886028686,4.07240545,186.12,186.11,0.66]
[1754886030917,4.07240545,186.12,186.1,0.03]
[1754886031122,0.06,186.12,186.1,0.74]
[1754886031494,0.7,186.11,186.1,0.03]
[1754886031697,9.47900458,186.11,186.1,0.03]
[1754886032209,8.77902123,186.11,186.1,0.03]
[1754886032588,14.85218763,186.11,186.1,0.03]
[1754886032793,54.35218763,186.11,186.1,0.03]
[1754886032989,54.35218763,186.11,186.08,0.03]
[1754886033211,4.76385419,186.09,186.08,0.03]
[1754886033416,8.77902123,186.09,186.08,0.03]
[1754886033721,9.47902123,186.09,186.08,0.03]
[1754886034617,14.85276511,186.09,186.08,0.03]
[1754886036596,54.35276511,186.09,186.08,0.03]
[1754886038022,4.01664487,186.09,186.08,0.74]
[1754886038397,0.06,186.12,186.08,0.74]
[1754886038603,4.015962,186.11,186.08,5.50385419]
[1754886038842,4.015962,186.11,186.09,0.71]
[1754886039517,0.06,186.12,186.08,4.79385419]
[1754886039705,0.06,186.12,186.1,0.71]
[1754886040024,0.06,186.12,186.1,5.47385419]
[1754886040227,0.06,186.12,186.1,4.76385419]
[1754886040408,0.06,186.12,186.11,0.71]
[1754886040607,4.07615182,186.12,186.11,0.71]
[1754886042505,9.44902953,186.12,186.09,4.79385419]
[1754886042736,4.01615182,186.11,186.09,5.50385419]
[1754886042903,4.01615182,186.11,186.09,0.03]
[1754886043235,48.26000601,186.1,186.09,0.03]
[1754886043397,4.01615182,186.1,186.09,0.03]
[1754886043812,14.15346114,186.1,186.09,0.03]
[1754886044338,9.38960695,186.1,186.09,0.03]
[1754886046805,4.01615182,186.1,186.09,0.74]
[1754886047002,0.06,186.12,186.09,5.50385419]
[1754886047202,4.01634981,186.11,186.1,5.47385419]
[1754886047415,4.01634981,186.11,186.1,0.71]
[1754886048005,0.06,186.12,186.1,0.71]
[1754886048313,4.01619656,186.11,186.1,0.71]
[1754886048513,0.06,186.12,186.09,4.79385419]
[1754886048728,0.06,186.12,186.09,5.50385419]
[1754886048933,0.06,186.12,186.1,0.71]
[1754886049313,0.06,186.12,186.09,4.79385419]
[1754886049516,4.01621222,186.11,186.09,0.03]
[1754886050207,5.3731664,186.11,186.09,0.03]
[1754886050406,9.48038915,186.1,186.09,0.03]
[1754886050736,4.0170191,186.1,186.09,0.03]
[1754886052021,4.01738633,186.1,186.09,0.03]
[1754886052440,9.39084146,186.1,186.09,0.03]
[1754886052738,10.09084146,186.1,186.09,0.03]
[1754886053431,39.44,186.11,186.09,0.03]
[1754886053432,5.37322897,186.11,186.09,0.03]
[1754886054118,6.07322897,186.11,186.09,0.03]
[1754886054333,4.01729575,186.1,186.09,0.03]
[1754886056019,9.39075088,186.1,186.09,0.03]
[1754886057408,10.09075088,186.1,186.09,0.03]
[1754886057611,14.85460507,186.1,186.09,0.03]
[1754886059134,14.85617502,186.1,186.09,0.03]
[1754886061015,14.85617502,186.1,186.08,0.03]
[1754886061342,48.90271989,186.09,186.08,0.03]
[1754886062542,54.27646377,186.09,186.08,0.03]
[1754886064841,53.57646377,186.09,186.08,0.03]
[1754886065340,48.81260958,186.09,186.08,0.03]
[1754886065540,53.57646377,186.09,186.08,0.03]
[1754886066040,54.27646377,186.09,186.08,0.03]
[1754886067720,43.4388657,186.09,186.08,0.03]
[1754886067929,4.0188657,186.09,186.08,0.71]
[1754886068143,2.211752,186.11,186.08,5.47385419]
[1754886068343,0.06,186.11,186.09,5.44385419]
[1754886068533,0.06,186.11,186.09,4.76385419]
[1754886068721,0.06,186.11,186.08,5.47385419]
[1754886069137,4.01498418,186.1,186.08,0.03]
[1754886069444,0.06,186.11,186.09,5.44385419]
[1754886069632,0.06,186.11,186.09,4.76385419]
[1754886069941,0.06,186.11,186.1,0.68]
[1754886070317,0.06,186.11,186.09,4.76385419]
[1754886070518,0.06,186.11,186.1,0.68]
[1754886071028,4.07476561,186.11,186.1,0.68]
[1754886071542,4.07476561,186.11,186.08,5.47385419]
[1754886071716,0.06,186.11,186.09,0.68]
[1754886071920,0.06,186.11,186.08,4.79385419]
[1754886072134,0.06,186.11,186.08,0.03]
[1754886072422,39.44,186.11,186.08,0.71]
[1754886072621,39.44,186.11,186.09,0.68]
[1754886074020,39.44,186.11,186.08,4.79385419]
[1754886074021,44.8131664,186.11,186.1,0.68]
[1754886074223,48.82841639,186.11,186.1,0.68]
[1754886074823,48.82841639,186.11,186.08,4.79385419]
[1754886075151,4.01506016,186.1,186.08,0.71]
[1754886076130,5.37374388,186.09,186.08,0.71]
[1754886076551,5.37374388,186.09,186.08,0.03]
[1754886076844,5.37374388,186.09,186.08,5.47385419]
[1754886077653,5.43317352,186.11,186.08,5.47385419]